fUST/lending_fUST_20250520
["ID","MTS","AMOUNT","RATE_DAILY","PERIOD"]
[361691325,1747693879514,-430.0,0.00022191,2]
[361691326,1747693879523,-430.0,0.00022191,2]
[361691327,1747693879532,-437.51,0.00022191,2]
[361691328,1747693879542,-584.57,0.00022191,2]
[361691329,1747693879551,-430.0,0.00022191,2]
[361691330,1747693879561,-430.0,0.00022191,2]
[361691331,1747693879570,-597.19,0.00022191,2]
[361691332,1747693879579,-821.41,0.00022191,2]
[361691333,1747693879589,-155.65348476,0.00022191,2]
[361691334,1747693879598,-430.0,0.00022191,2]
[361691335,1747693879608,-430.0,0.00022191,2]
[361691336,1747693879617,-451.97,0.00022191,2]
[361691337,1747693879627,-628.93,0.00022191,2]
[361691338,1747693879636,-826.72,0.00022191,2]
[361691339,1747693879645,-5000.0,0.00022191,2]
[361691340,1747693879655,-457.8,0.00022191,2]
[361691341,1747693879664,-788.12,0.00022191,2]
[361691342,1747693879673,-430.0,0.00022191,2]
[361691343,1747693879682,-541.45,0.00022191,2]
[361691344,1747693879692,-430.0,0.00022191,2]
[361691345,1747693879701,-645.45,0.00022191,2]
[361691346,1747693879710,-537.55,0.00022191,2]
[361691347,1747693879719,-560.02,0.00022191,2]
[361691348,1747693879728,-772.82,0.00022191,2]
[361691349,1747693879738,-430.0,0.00022191,2]
[361691350,1747693879747,-688.5,0.00022191,2]
[361691351,1747693879756,-616.06,0.00022191,2]
[361691352,1747693879766,-455.92,0.00022191,2]
[361691353,1747693879775,-430.0,0.00022191,2]
[361691354,1747693879786,-430.0,0.00022191,2]
[361691355,1747693879795,-430.0,0.00022191,2]
[361691356,1747693879804,-1238.66,0.00022191,2]
[361691357,1747693879813,-681.65,0.00022191,2]
[361691358,1747693879823,-862.58,0.00022191,2]
[361691359,1747693879832,-724.76,0.00022191,2]
[361691360,1747693879841,-253.36536788,0.00022191,2]
[361691361,1747693879851,-718.44,0.00022191,2]
[361691362,1747693879861,-1486.21,0.00022191,2]
[361691363,1747693879872,-436.65,0.00022191,2]
[361691364,1747693879882,-1409.24,0.00022191,2]
[361691365,1747693879895,-1956.59,0.00022191,2]
[361691366,1747693879904,-621.1,0.00022191,2]
[361691367,1747693879913,-430.0,0.00022191,2]
[361691368,1747693879923,-649.53,0.00022191,2]
[361691369,1747693879932,-479.24,0.00022191,2]
[361691370,1747693879941,-652.6,0.00022191,2]
[361691371,1747693879951,-3564.26,0.00022191,2]
[361691372,1747693879960,-625.58,0.00022191,2]
[361691373,1747693879970,-430.0,0.00022191,2]
[361691374,1747693879979,-531.21,0.00022191,2]
[361691375,1747693879988,-430.0,0.00022191,2]
[361691376,1747693879998,-430.0,0.00022191,2]
[361691377,1747693880007,-917.56,0.00022191,2]
[361691378,1747693880017,-1059.44,0.00022191,2]
[361691379,1747693880026,-963.29,0.00022191,2]
[361691380,1747693880036,-2463.34,0.00022191,2]
[361691381,1747693880046,-1322.67,0.00022191,2]
[361691382,1747693880056,-989.85,0.00022191,2]
[361691383,1747693880065,-472.87,0.00022191,2]
[361691384,1747693880075,-1071.91,0.00022191,2]
[361691385,1747693880085,-1365.37,0.00022191,2]
[361691386,1747693880095,-435.96,0.00022191,2]
[361691387,1747693880104,-6970.38,0.00022191,2]
[361691388,1747693880114,-572.38,0.00022191,2]
[361691389,1747693880123,-492.52,0.00022191,2]
[361691390,1747693880133,-1276.02,0.00022191,2]
[361691391,1747693880142,-2285.96,0.00022191,2]
[361691392,1747693880151,-1674.68,0.00022191,2]
[361691393,1747693880161,-521.12621714,0.00022191,2]
[361691394,1747693880170,-430.0,0.00022191,2]
[361691395,1747693880180,-1177.1,0.00022191,2]
[361691396,1747693880189,-4144.0,0.00022191,2]
[361691397,1747693880199,-420.19,0.00022191,2]
[361691398,1747693880209,-4514.42,0.00022191,2]
[361691399,1747693880218,-589.39,0.00022191,2]
[361691400,1747693880229,-2345.01,0.00022191,2]
[361691401,1747693880239,-1255.98,0.00022191,2]
[361691402,1747693880248,-1428.09,0.00022191,2]
[361691403,1747693880258,-1007.3,0.00022191,2]
[361691404,1747693880267,-430.0,0.00022191,2]
[361691405,1747693880276,-430.0,0.00022191,2]
[361691406,1747693880286,-430.0,0.00022191,2]
[361691407,1747693880295,-567.37,0.00022191,2]
[361691408,1747693880304,-1170.71,0.00022191,2]
[361691409,1747693880314,-430.0,0.00022191,2]
[361691410,1747693880323,-6164.94,0.00022191,2]
[361691411,1747693880332,-1695.82,0.00022191,2]
[361691412,1747693880342,-1029.82,0.00022191,2]
[361691413,1747693880351,-1142.01,0.00022191,2]
[361691414,1747693880360,-430.0,0.00022191,2]
[361691415,1747693880370,-503.28,0.00022191,2]
[361691416,1747693880379,-1592.78,0.00022191,2]
[361691417,1747693880388,-1295.39,0.00022191,2]
[361691418,1747693880398,-670.07,0.00022191,2]
[361691419,1747693880407,-430.0,0.00022191,2]
[361691420,1747693880417,-1232.45,0.00022191,2]
[361691421,1747693880426,-1017.31,0.00022191,2]
[361691422,1747693880436,-402.38,0.00022191,2]
[361691423,1747693880445,-1326.53,0.00022191,2]
[361691424,1747693880455,-1258.46,0.00022191,2]
[361691425,1747693880464,-2643.08,0.00022191,2]
[361691426,1747693880474,-201.71,0.00022191,2]
[361691427,1747693880484,-1678.98,0.00022191,2]
[361691428,1747693880493,-430.0,0.00022191,2]
[361691429,1747693880503,-670.64,0.00022191,2]
[361691430,1747693880512,-872.02,0.00022191,2]
[361691431,1747693880521,-166.61,0.00022191,2]
[361691432,1747693880531,-430.0,0.00022191,2]
[361691433,1747693880541,-993.14,0.00022191,2]
[361691434,1747693880551,-747.98,0.00022191,2]
[361691435,1747693880560,-867.01,0.00022191,2]
[361691436,1747693880570,-561.84,0.00022191,2]
[361691437,1747693880580,-896.57,0.00022191,2]
[361691438,1747693880591,-846.37,0.00022191,2]
[361691439,1747693880601,-489.72,0.00022191,2]
[361691440,1747693880611,-507.94,0.00022191,2]
[361691441,1747693880621,-430.0,0.00022191,2]
[361691442,1747693880631,-551.77,0.00022191,2]
[361691443,1747693880640,-533.4,0.00022191,2]
[361691444,1747693880649,-546.01,0.00022191,2]
[361691445,1747693880659,-1186.61,0.00022191,2]
[361691446,1747693880669,-691.74,0.00022191,2]
[361691447,1747693880679,-536.58,0.00022191,2]
[361691448,1747693880690,-587.23,0.00022191,2]
[361691449,1747693880700,-1193.12,0.00022191,2]
[361691450,1747693880709,-1021.33,0.00022191,2]
[361691451,1747693880719,-1095.83,0.00022191,2]
[361691452,1747693880728,-559.0,0.00022192,7]
[361691453,1747693880738,-6523.42894091,0.00022227,2]
[361691454,1747693880748,-3500.0,0.00022236,2]
[361691455,1747693880758,-1500.0,0.00022275,2]
[361691456,1747693880767,-1500.0,0.00022275,2]
[361691457,1747693880777,-896.2651331,0.00022275,2]
[361691458,1747693880786,-160.0,0.00022303,3]
[361691459,1747693880796,-2000.0,0.00022304,2]
[361691460,1747693880806,-2000.0,0.00022304,2]
[361691461,1747693880815,-2000.0,0.00022304,2]
[361691462,1747693880825,-2000.0,0.00022304,2]
[361691463,1747693880835,-2000.0,0.00022304,2]
[361691464,1747693880844,-2000.0,0.00022304,2]
[361691465,1747693880854,-499.08336944,0.00022304,2]
[361691466,1747693880864,-1049.01821402,0.00022304,2]
[361691467,1747693880874,-2000.0,0.00022304,2]
[361691468,1747693880883,-2000.0,0.00022304,2]
[361691469,1747693880892,-2000.0,0.00022304,2]
[361691470,1747693880902,-2000.0,0.00022304,2]
[361691471,1747693880912,-1159.3892112,0.00022314,7]
[361691472,1747693880921,-159.35616,0.00022338,5]
[361691473,1747693880931,-159.35616,0.00022345,2]
[361691474,1747693880941,-159.35616,0.0002237,3]
[361691475,1747693880950,-1072.58,0.00022418,7]
[361691476,1747693880959,-651.52,0.00022465,2]
[361691477,1747693880969,-430.0,0.00022465,2]
[361691478,1747693880978,-430.0,0.00022465,2]
[361691479,1747693880987,-732.74,0.00022465,2]
[361691480,1747693880997,-430.0,0.00022465,2]
[361691481,1747693881006,-171.29,0.00022465,2]
[361691482,1747693881015,-430.0,0.00022465,2]
[361691483,1747693881025,-430.0,0.00022465,2]
[361691484,1747693881034,-509.72,0.00022465,2]
[361691485,1747693881044,-430.0,0.00022465,2]
[361691486,1747693881053,-427.22,0.00022465,2]
[361691487,1747693881062,-430.0,0.00022465,2]
[361691488,1747693881071,-437.51,0.00022465,2]
[361691489,1747693881081,-584.57,0.00022465,2]
[361691490,1747693881090,-430.0,0.00022465,2]
[361691491,1747693881099,-430.0,0.00022465,2]
[361691492,1747693881109,-597.19,0.00022465,2]
[361691493,1747693881119,-821.41,0.00022465,2]
[361691494,1747693881129,-430.0,0.00022465,2]
[361691495,1747693881138,-430.0,0.00022465,2]
[361691496,1747693881147,-451.97,0.00022465,2]
[361691497,1747693881157,-628.93,0.00022465,2]
[361691498,1747693881166,-826.72,0.00022465,2]
[361691499,1747693881175,-4150.59668332,0.00022465,2]
[361691500,1747693881185,-457.8,0.00022465,2]
[361691501,1747693881194,-788.12,0.00022465,2]
[361691502,1747693881203,-414.58680324,0.00022465,2]
[361691503,1747693881213,-541.45,0.00022465,2]
[361691504,1747693881222,-430.0,0.00022465,2]
[361691505,1747693881235,-645.45,0.00022465,2]
[361691506,1747693881244,-560.02,0.00022465,2]
[361691507,1747693881253,-772.82,0.00022465,2]
[361691508,1747693881262,-430.0,0.00022465,2]
[361691509,1747693881272,-688.5,0.00022465,2]
[361691510,1747693881283,-616.06,0.00022465,2]
[361691511,1747693881292,-455.92,0.00022465,2]
[361691512,1747693881302,-430.0,0.00022465,2]
[361691513,1747693881313,-430.0,0.00022465,2]
[361691514,1747693881323,-488.03750989,0.00022465,2]
[361691515,1747693881333,-1238.66,0.00022465,2]
[361691516,1747693881342,-681.65,0.00022465,2]
[361691517,1747693881351,-862.58,0.00022465,2]
[361691518,1747693881361,-724.76,0.00022465,2]
[361691519,1747693881371,-718.44,0.00022465,2]
[361691520,1747693881381,-1486.21,0.00022465,2]
[361691521,1747693881391,-436.65,0.00022465,2]
[361691522,1747693881401,-1409.24,0.00022465,2]
[361691523,1747693881410,-1956.59,0.00022465,2]
[361691524,1747693881420,-621.1,0.00022465,2]
[361691525,1747693881430,-430.0,0.00022465,2]
[361691526,1747693881440,-649.53,0.00022465,2]
[361691527,1747693881449,-479.24,0.00022465,2]
[361691528,1747693881459,-652.6,0.00022465,2]
[361691529,1747693881469,-3564.26,0.00022465,2]
[361691530,1747693881479,-625.58,0.00022465,2]
[361691531,1747693881488,-430.0,0.00022465,2]
[361691532,1747693881497,-531.21,0.00022465,2]
[361691533,1747693881507,-430.0,0.00022465,2]
[361691534,1747693881516,-430.0,0.00022465,2]
[361691535,1747693881526,-917.56,0.00022465,2]
[361691536,1747693881535,-1059.44,0.00022465,2]
[361691537,1747693881545,-963.29,0.00022465,2]
[361691538,1747693881555,-2463.34,0.00022465,2]
[361691539,1747693881564,-1322.67,0.00022465,2]
[361691540,1747693881574,-989.85,0.00022465,2]
[361691541,1747693881585,-472.87,0.00022465,2]
[361691542,1747693881595,-1071.91,0.00022465,2]
[361691543,1747693881605,-1365.37,0.00022465,2]
[361691544,1747693881615,-435.96,0.00022465,2]
[361691545,1747693881625,-6970.38,0.00022465,2]
[361691546,1747693881635,-572.38,0.00022465,2]
[361691547,1747693881645,-492.52,0.00022465,2]
[361691548,1747693881654,-1276.02,0.00022465,2]
[361691549,1747693881663,-2285.96,0.00022465,2]
[361691550,1747693881674,-1674.68,0.00022465,2]
[361691551,1747693881683,-430.0,0.00022465,2]
[361691552,1747693881693,-1177.1,0.00022465,2]
[361691553,1747693881703,-4144.0,0.00022465,2]
[361691554,1747693881713,-4514.42,0.00022465,2]
[361691555,1747693881723,-589.39,0.00022465,2]
[361691556,1747693881733,-2345.01,0.00022465,2]
[361691557,1747693881742,-1255.98,0.00022465,2]
[361691558,1747693881751,-1428.09,0.00022465,2]
[361691559,1747693881761,-1007.3,0.00022465,2]
[361691560,1747693881770,-430.0,0.00022465,2]
[361691561,1747693881780,-430.0,0.00022465,2]
[361691562,1747693881790,-430.0,0.00022465,2]
[361691563,1747693881800,-567.37,0.00022465,2]
[361691564,1747693881810,-1170.71,0.00022465,2]
[361691565,1747693881819,-430.0,0.00022465,2]
[361691566,1747693881829,-6164.94,0.00022465,2]
[361691567,1747693881839,-1695.82,0.00022465,2]
[361691568,1747693881848,-1029.82,0.00022465,2]
[361691569,1747693881857,-1142.01,0.00022465,2]
[361691570,1747693881867,-430.0,0.00022465,2]
[361691571,1747693881876,-503.28,0.00022465,2]
[361691572,1747693881886,-1592.78,0.00022465,2]
[361691573,1747693881895,-1295.39,0.00022465,2]
[361691574,1747693881904,-670.07,0.00022465,2]
[361691575,1747693881913,-430.0,0.00022465,2]
[361691576,1747693881923,-1232.45,0.00022465,2]
[361691577,1747693881932,-1017.31,0.00022465,2]
[361691578,1747693882063,-1326.53,0.00022465,2]
[361691579,1747693882090,-1258.46,0.00022465,2]
[361691580,1747693882099,-2643.08,0.00022465,2]
[361691581,1747693882109,-1678.98,0.00022465,2]
[361691582,1747693882118,-430.0,0.00022465,2]
[361691583,1747693882128,-670.64,0.00022465,2]
[361691584,1747693882136,-872.02,0.00022465,2]
[361691585,1747693882146,-430.0,0.00022465,2]
[361691586,1747693882157,-993.14,0.00022465,2]
[361691587,1747693882168,-747.98,0.00022465,2]
[361691588,1747693882178,-867.01,0.00022465,2]
[361691589,1747693882187,-561.84,0.00022465,2]
[361691590,1747693882197,-896.57,0.00022465,2]
[361691591,1747693882206,-846.37,0.00022465,2]
[361691592,1747693882215,-489.72,0.00022465,2]
[361691593,1747693882225,-507.94,0.00022465,2]
[361691594,1747693882239,-430.0,0.00022465,2]
[361691595,1747693882249,-551.77,0.00022465,2]
[361691596,1747693882258,-533.4,0.00022465,2]
[361691597,1747693882267,-546.01,0.00022465,2]
[361691598,1747693882278,-1186.61,0.00022465,2]
[361691599,1747693882288,-691.74,0.00022465,2]
[361691600,1747693882297,-536.58,0.00022465,2]
[361691601,1747693882306,-587.23,0.00022465,2]
[361691602,1747693882316,-1193.12,0.00022465,2]
[361691603,1747693882325,-1021.33,0.00022465,2]
[361691604,1747693882335,-1095.83,0.00022465,2]
[361691605,1747693882344,-1500.0,0.00022469,2]
[361691606,1747693882353,-1488.75221,0.0002248,5]
[361691607,1747693882362,-1000.0,0.000225,5]
[361691608,1747693882372,-4000.0,0.000225,4]
[361691609,1747693882381,-1072.58,0.00022518,2]
[361691610,1747693882390,-1000.0,0.0002252,5]
[361691611,1747693882400,-351.62027473,0.00022521,2]
[361691612,1747693882410,-1000.0,0.00022521,2]
[361691613,1747693882419,-1000.0,0.00022521,2]
[361691614,1747693882429,-1000.0,0.0002254,5]
[361691615,1747693882438,-1000.0,0.0002256,5]
[361691616,1747693882448,-1000.0,0.0002258,5]
[361691617,1747693882457,-2500.0,0.00022582,2]
[361691618,1747693882467,-3000.0,0.00022582,2]
[361691619,1747693882476,-621.0,0.00022584,2]
[361691620,1747693882486,-1159.3892112,0.0002259,7]
[361691621,1747693882495,-570.36,0.000226,14]
[361691622,1747693882505,-1000.0,0.000226,5]
[361691623,1747693882514,-402.783509,0.00022603,2]
[361691624,1747693882524,-1072.58,0.00022618,2]
[361691625,1747693882533,-1000.0,0.0002262,5]
[361691626,1747693882543,-1000.0,0.0002264,5]
[361691627,1747693882553,-2738.86121367,0.00022648,5]
[361691628,1747693882562,-1000.0,0.0002266,5]
[361691629,1747693882571,-1000.0,0.0002268,5]
[361691630,1747693882580,-160.0,0.0002268,4]
[361691631,1747693882590,-1000.0,0.000227,5]
[361691632,1747693882599,-1072.58,0.00022718,5]
[361691633,1747693882608,-153.0,0.00022731,2]
[361691634,1747693882618,-651.52,0.00022739,2]
[361691635,1747693882627,-430.0,0.00022739,2]
[361691636,1747693882637,-430.0,0.00022739,2]
[361691637,1747693882646,-732.74,0.00022739,2]
[361691638,1747693882655,-430.0,0.00022739,2]
[361691639,1747693882665,-171.29,0.00022739,2]
[361691640,1747693882674,-430.0,0.00022739,2]
[361691641,1747693882683,-430.0,0.00022739,2]
[361691642,1747693882692,-509.72,0.00022739,2]
[361691643,1747693882702,-430.0,0.00022739,2]
[361691644,1747693882711,-430.0,0.00022739,2]
[361691645,1747693882720,-437.51,0.00022739,2]
[361691646,1747693882729,-584.57,0.00022739,2]
[361691647,1747693882738,-338.20473137,0.00022739,2]
[361691648,1747693882747,-430.0,0.00022739,2]
[361691649,1747693882756,-597.19,0.00022739,2]
[361691650,1747693882765,-821.41,0.00022739,2]
[361691651,1747693882774,-430.0,0.00022739,2]
[361691652,1747693882783,-430.0,0.00022739,2]
[361691653,1747693882793,-451.97,0.00022739,2]
[361691654,1747693882802,-628.93,0.00022739,2]
[361691655,1747693882811,-826.72,0.00022739,2]
[361691656,1747693882820,-457.8,0.00022739,2]
[361691657,1747693882829,-788.12,0.00022739,2]
[361691658,1747693882838,-541.45,0.00022739,2]
[361691659,1747693882847,-430.0,0.00022739,2]
[361691660,1747693882857,-645.45,0.00022739,2]
[361691661,1747693882866,-560.02,0.00022739,2]
[361691662,1747693882875,-772.82,0.00022739,2]
[361691663,1747693882884,-430.0,0.00022739,2]
[361691664,1747693882894,-688.5,0.00022739,2]
[361691665,1747693882903,-616.06,0.00022739,2]
[361691666,1747693882912,-455.92,0.00022739,2]
[361691667,1747693882922,-430.0,0.00022739,2]
[361691668,1747693882932,-430.0,0.00022739,2]
[361691669,1747693882941,-1238.66,0.00022739,2]
[361691670,1747693882950,-681.65,0.00022739,2]
[361691671,1747693882959,-862.58,0.00022739,2]
[361691672,1747693882969,-724.76,0.00022739,2]
[361691673,1747693882978,-718.44,0.00022739,2]
[361691674,1747693882988,-1486.21,0.00022739,2]
[361691675,1747693882998,-436.65,0.00022739,2]
[361691676,1747693883007,-1409.24,0.00022739,2]
[361691677,1747693883017,-1956.59,0.00022739,2]
[361691678,1747693883026,-621.1,0.00022739,2]
[361691679,1747693883035,-430.0,0.00022739,2]
[361691680,1747693883045,-649.53,0.00022739,2]
[361691681,1747693883055,-479.24,0.00022739,2]
[361691682,1747693883064,-652.6,0.00022739,2]
[361691683,1747693883074,-3564.26,0.00022739,2]
[361691684,1747693883083,-625.58,0.00022739,2]
[361691685,1747693883092,-430.0,0.00022739,2]
[361691686,1747693883101,-531.21,0.00022739,2]
[361691687,1747693883111,-466.49,0.00022739,2]
[361691688,1747693883121,-430.0,0.00022739,2]
[361691689,1747693883130,-917.56,0.00022739,2]
[361691690,1747693883139,-1059.44,0.00022739,2]
[361691691,1747693883149,-963.29,0.00022739,2]
[361691692,1747693883160,-2463.34,0.00022739,2]
[361691693,1747693883169,-1322.67,0.00022739,2]
[361691694,1747693883179,-989.85,0.00022739,2]
[361691695,1747693883189,-472.87,0.00022739,2]
[361691696,1747693883198,-1071.91,0.00022739,2]
[361691697,1747693883207,-1365.37,0.00022739,2]
[361691698,1747693883216,-435.96,0.00022739,2]
[361691699,1747693883226,-6970.38,0.00022739,2]
[361691700,1747693883239,-572.38,0.00022739,2]
[361691701,1747693883248,-492.52,0.00022739,2]
[361691702,1747693883258,-1276.02,0.00022739,2]
[361691703,1747693883267,-2285.96,0.00022739,2]
[361691704,1747693883277,-1674.68,0.00022739,2]
[361691705,1747693883286,-157.06,0.00022739,2]
[361691706,1747693883297,-1177.1,0.00022739,2]
[361691707,1747693883308,-4144.0,0.00022739,2]
[361691708,1747693883317,-4514.42,0.00022739,2]
[361691709,1747693883327,-589.39,0.00022739,2]
[361691710,1747693883335,-2345.01,0.00022739,2]
[361691711,1747693883344,-1255.98,0.00022739,2]
[361691712,1747693883354,-1428.09,0.00022739,2]
[361691713,1747693883363,-1007.3,0.00022739,2]
[361691714,1747693883372,-430.0,0.00022739,2]
[361691715,1747693883381,-430.0,0.00022739,2]
[361691716,1747693883391,-430.0,0.00022739,2]
[361691717,1747693883400,-567.37,0.00022739,2]
[361691718,1747693883410,-1170.71,0.00022739,2]
[361691719,1747693883419,-430.0,0.00022739,2]
[361691720,1747693883429,-6164.94,0.00022739,2]
[361691721,1747693883439,-1695.82,0.00022739,2]
[361691722,1747693883448,-1029.82,0.00022739,2]
[361691723,1747693883458,-1142.01,0.00022739,2]
[361691724,1747693883467,-430.0,0.00022739,2]
[361691725,1747693883477,-503.28,0.00022739,2]
[361691726,1747693883486,-1592.78,0.00022739,2]
[361691727,1747693883496,-1295.39,0.00022739,2]
[361691728,1747693883505,-670.07,0.00022739,2]
[361691729,1747693883514,-328.35249934,0.00022739,2]
[361691730,1747693883524,-1232.45,0.00022739,2]
[361691731,1747693883536,-1017.31,0.00022739,2]
[361691732,1747693883546,-1326.53,0.00022739,2]
[361691733,1747693883556,-1258.46,0.00022739,2]
[361691734,1747693883565,-2643.08,0.00022739,2]
[361691735,1747693883576,-1678.98,0.00022739,2]
[361691736,1747693883585,-430.0,0.00022739,2]
[361691737,1747693883595,-670.64,0.00022739,2]
[361691738,1747693883604,-872.02,0.00022739,2]
[361691739,1747693883614,-430.0,0.00022739,2]
[361691740,1747693883624,-993.14,0.00022739,2]
[361691741,1747693883634,-747.98,0.00022739,2]
[361691742,1747693883644,-867.01,0.00022739,2]
[361691743,1747693883654,-561.84,0.00022739,2]
[361691744,1747693883664,-896.57,0.00022739,2]
[361691745,1747693883674,-846.37,0.00022739,2]
[361691746,1747693883685,-489.72,0.00022739,2]
[361691747,1747693883694,-507.94,0.00022739,2]
[361691748,1747693883704,-430.0,0.00022739,2]
[361691749,1747693883713,-551.77,0.00022739,2]
[361691750,1747693883723,-533.4,0.00022739,2]
[361691751,1747693883733,-546.01,0.00022739,2]
[361691752,1747693883742,-1186.61,0.00022739,2]
[361691753,1747693883752,-691.74,0.00022739,2]
[361691754,1747693883763,-536.58,0.00022739,2]
[361691755,1747693883773,-587.23,0.00022739,2]
[361691756,1747693883783,-1193.12,0.00022739,2]
[361691757,1747693883792,-1021.33,0.00022739,2]
[361691758,1747693883801,-1095.83,0.00022739,2]
[361691759,1747693883811,-1400.0,0.00022753,2]
[361691760,1747693883821,-3223.74739487,0.00022784,2]
[361691761,1747693883830,-1713.25,0.000228,7]
[361691762,1747693883839,-300.0,0.00022803,2]
[361691763,1747693883849,-6523.42894091,0.00022808,2]
[361691764,1747693883858,-1072.58,0.00022818,5]
[361691765,1747693883868,-215.94222768,0.00022823,2]
[361691766,1747693883877,-1167.52357811,0.00022823,2]
[361691767,1747693883887,-2500.0,0.00022852,2]
[361691768,1747693883896,-2500.0,0.00022852,2]
[361691769,1747693883906,-579.34974334,0.00022852,2]
[361691770,1747693883916,-2500.0,0.00022852,2]
[361691771,1747693883925,-1048.70962451,0.00022852,2]
[361691772,1747693883935,-878.77148421,0.00022852,2]
[361691773,1747693883945,-2545.30583578,0.00022852,2]
[361691774,1747693883955,-1029.27692548,0.00022852,2]
[361691775,1747693883965,-2500.0,0.00022852,2]
[361691776,1747693883975,-2500.0,0.00022852,2]
[361691777,1747693883984,-1159.3892112,0.00022866,8]
[361691778,1747693883994,-151.75574745,0.000229,2]
[361691779,1747693884004,-1072.58,0.00022918,4]
[361691780,1747693884015,-2000.0,0.00023,2]
[361691781,1747693884024,-402.5,0.00023,2]
[361691782,1747693884033,-400.16904295,0.00023,2]
[361691783,1747693884043,-84076.26928417,0.00023,2]
[361691784,1747693884053,-3015.69034028,0.00023,2]
[361691785,1747693884062,-200.0,0.00023,2]
[361691786,1747693884071,-160.0,0.00023,3]
[361691787,1747693884082,-160.0,0.00023,3]
[361691788,1747693884094,-160.0,0.00023,3]
[361691789,1747693884103,-160.0,0.00023,3]
[361691790,1747693884115,-422.59250115,0.00023,3]
[361691791,1747693884125,-651.52,0.00023013,2]
[361691792,1747693884135,-430.0,0.00023013,2]
[361691793,1747693884144,-430.0,0.00023013,2]
[361691794,1747693884154,-732.74,0.00023013,2]
[361691795,1747693884163,-430.0,0.00023013,2]
[361691796,1747693884172,-171.29,0.00023013,2]
[361691797,1747693884181,-430.0,0.00023013,2]
[361691798,1747693884191,-478.69986832,0.00023013,2]
[361691799,1747693884200,-509.72,0.00023013,2]
[361691800,1747693884209,-430.0,0.00023013,2]
[361691801,1747693884219,-430.0,0.00023013,2]
[361691802,1747693884228,-437.51,0.00023013,2]
[361691803,1747693884242,-584.57,0.00023013,2]
[361691804,1747693884251,-430.0,0.00023013,2]
[361691805,1747693884262,-597.19,0.00023013,2]
[361691806,1747693884272,-821.41,0.00023013,2]
[361691807,1747693884283,-430.0,0.00023013,2]
[361691808,1747693884293,-430.0,0.00023013,2]
[361691809,1747693884303,-451.97,0.00023013,2]
[361691810,1747693884314,-628.93,0.00023013,2]
[361691811,1747693884323,-826.72,0.00023013,2]
[361691812,1747693884332,-457.8,0.00023013,2]
[361691813,1747693884341,-788.12,0.00023013,2]
[361691814,1747693884351,-457.80602175,0.00023013,2]
[361691815,1747693884359,-541.45,0.00023013,2]
[361691816,1747693884369,-645.45,0.00023013,2]
[361691817,1747693884378,-560.02,0.00023013,2]
[361691818,1747693884388,-772.82,0.00023013,2]
[361691819,1747693884397,-430.0,0.00023013,2]
[361691820,1747693884406,-688.5,0.00023013,2]
[361691821,1747693884415,-616.06,0.00023013,2]
[361691822,1747693884425,-455.92,0.00023013,2]
[361691823,1747693884434,-430.0,0.00023013,2]
[361691824,1747693884443,-430.0,0.00023013,2]